bitfinex-derivatives/quotes_ETHF0:USTF0_20250708
["timestamp","ask_amount","ask_price","bid_price","bid_amount"]
[1752003928587,5.2986573,2608.0,2607.9,1.41369]
[1752003928784,6.61803792,2608.0,2607.9,1.41369]
[1752003928981,6.61803792,2608.0,2607.9,0.76679]
[1752003929185,7.58413792,2608.0,2607.6,4.64638]
[1752003929490,6.65809,2608.0,2607.9,0.76679]
[1752003929791,8.10185072,2608.0,2607.9,0.76679]
[1752003929992,9.06795072,2608.0,2607.9,0.76679]
[1752003930191,8.30116072,2608.0,2607.9,0.76679]
[1752003930591,9.06792072,2608.0,2607.9,0.76679]
[1752003930792,10.38730134,2608.0,2607.9,0.76679]
[1752003931092,9.62054134,2608.0,2607.9,0.76679]
[1752003931292,10.38730134,2608.0,2607.9,0.76679]
[1752003931593,6.26446072,2608.0,2607.9,1.41369]
[1752003931790,7.58384134,2608.0,2607.9,1.41369]
[1752003932190,7.58384134,2608.0,2607.9,0.76679]
[1752003932394,7.58384134,2608.0,2607.9,1.41369]
[1752003932694,4.37604134,2608.0,2607.9,1.41369]
[1752003933491,5.14280134,2608.0,2607.9,1.41369]
[1752003934293,4.37604134,2608.0,2607.9,1.41369]
[1752003934896,5.14280134,2608.0,2607.9,1.41369]
[1752003935196,5.14280134,2608.0,2607.9,0.76679]
[1752003935494,4.37604134,2608.0,2607.9,0.76679]
[1752003936496,5.14280134,2608.0,2607.9,0.76679]
[1752003936794,6.49190134,2608.0,2607.9,0.76679]
[1752003938695,6.49190134,2608.0,2607.8,0.7668]
[1752003938696,0.76684,2607.9,2607.8,0.7668]
[1752003938997,5.79458134,2607.9,2607.8,0.7668]
[1752003939197,7.06308134,2607.9,2607.8,0.7668]
[1752003939593,0.76685,2607.8,2607.7,0.76682]
[1752003939795,1.73295,2607.8,2607.7,0.76682]
[1752003939996,2.37975,2607.8,2607.7,0.76682]
[1752003940294,1.6129,2607.8,2607.7,0.76682]
[1752003940495,2.37972,2607.8,2607.7,0.76682]
[1752003941499,3.70502,2607.8,2607.7,0.76682]
[1752003942296,5.14726008,2607.8,2607.7,0.76682]
[1752003943395,3.53436008,2607.8,2607.7,0.76682]
[1752003943596,5.14726008,2607.8,2607.7,0.76682]
[1752003944595,4.38044008,2607.8,2607.7,1.41372]
[1752003944798,4.38044008,2607.8,2607.7,0.76682]
[1752003944998,4.38044008,2607.8,2607.7,1.41372]
[1752003945199,4.38044008,2607.8,2607.7,0.76682]
[1752003945601,0.7667,2608.2,2608.1,0.7667]
[1752003945796,4.17545554,2608.2,2608.1,0.7667]
[1752003945991,4.17545554,2608.2,2608.1,1.4136]
[1752003945992,5.14155554,2608.2,2608.1,1.4136]
[1752003946197,5.14155554,2608.2,2608.1,0.7667]
[1752003946399,5.14155554,2608.2,2608.1,1.4136]
[1752003946597,5.14155554,2608.2,2608.1,0.7667]
[1752003946797,4.37485554,2608.2,2608.1,1.4136]
[1752003946996,3.40875554,2608.2,2608.1,1.4136]
[1752003947501,2.08937492,2608.2,2608.1,1.4136]
[1752003947694,1.44257492,2608.2,2608.1,1.4136]
[1752003948095,2.08937492,2608.2,2608.1,1.4136]
[1752003948498,1.44257492,2608.2,2608.1,1.4136]
[1752003950004,2.08937492,2608.2,2608.1,1.4136]
[1752003950205,1.44257492,2608.2,2608.1,1.4434]
[1752003951206,2.28548062,2608.6,2608.5,0.76661]
[1752003951505,5.1210516,2608.6,2608.5,0.76661]
[1752003951905,4.3544716,2608.6,2608.5,0.76661]
[1752003953604,3.03509098,2608.6,2608.5,0.76661]
[1752003953907,2.06899098,2608.6,2608.5,2.03501]
[1752003954203,2.06899098,2608.6,2608.5,2.71171]
[1752003954800,6.25740062,2608.9,2608.8,0.76652]
[1752003955002,8.32542326,2608.9,2608.8,0.76652]
[1752003955402,0.76654,2608.8,2608.7,0.76653]
[1752003955602,1.44192264,2608.8,2608.7,0.76653]
[1752003955801,1.44192264,2608.8,2608.7,1.44323]
[1752003956004,2.20844264,2608.8,2608.7,1.44323]
[1752003957007,1.44192264,2608.8,2608.7,1.44323]
[1752003957205,2.76130326,2608.8,2608.7,1.44323]
[1752003957604,1.44192264,2608.8,2608.7,1.44323]
[1752003958909,1.44192264,2608.8,2608.7,0.76653]
[1752003959106,1.44192264,2608.8,2608.7,1.44323]
[1752003959300,3.2078,2608.9,2608.8,0.76652]
[1752003959504,5.27253174,2608.9,2608.8,1.44322]
[1752003959706,6.03902174,2608.9,2608.8,1.44322]
[1752003959905,7.31232174,2608.9,2608.8,0.6767]
[1752003960106,7.31232174,2608.9,2608.8,1.44322]
[1752003960605,8.27602174,2608.9,2608.8,0.76652]
[1752003961611,8.27602174,2608.9,2608.8,1.44322]
[1752003963013,8.27602174,2608.9,2608.8,0.76652]
[1752003963509,8.27461103,2608.9,2608.8,0.76652]
[1752003965313,6.68481103,2608.9,2608.8,0.76652]
[1752003965611,8.27461103,2608.9,2608.8,0.76652]
[1752003967415,0.76661,2608.6,2608.5,0.76657]
[1752003967613,2.08599062,2608.6,2608.5,0.76657]
[1752003969012,3.67579062,2608.6,2608.5,0.76657]
[1752003970408,2.90918062,2608.6,2608.1,1.91682]
[1752003970610,2.08609062,2608.2,2608.1,0.76673]
[1752003970807,3.67589062,2608.2,2608.1,0.76673]
[1752003971410,0.76673,2608.1,2608.0,3.97454]
[1752003971606,0.76682,2607.8,2607.7,3.2078]
[1752003971812,0.76685,2607.7,2607.6,0.76685]
[1752003972011,2.66755,2607.7,2607.6,0.76685]
[1752003972209,3.63125,2607.7,2607.6,0.76685]
[1752003972609,0.76691,2607.5,2607.4,3.97473]
[1752003972812,0.76691,2607.5,2607.1,1.91754]
[1752003972813,0.76696,2607.4,2607.3,0.76694]
[1752003973108,4.95074062,2607.4,2607.3,0.76694]
[1752003975115,0.76699,2607.3,2607.2,0.76698]
[1752003975517,2.35679,2607.3,2607.2,1.44368]
[1752003976314,3.50724,2607.3,2606.9,0.76708]
[1752003976619,1.31938062,2607.0,2606.9,0.76708]
[1752003976918,1.94548062,2607.0,2606.9,1.44378]
[1752003977918,2.90918062,2607.0,2606.9,1.44378]
[1752003980017,7.43636124,2607.0,2605.8,7.78851771]
[1752003980316,27.2847,2606.9,2606.8,0.76711]
[1752003980516,1.6431,2606.9,2606.8,1.41311]
[1752003980820,0.6794,2606.9,2606.8,2.07671]
[1752003985425,1.31938062,2607.0,2606.9,0.76708]
[1752003985620,1.99878062,2607.0,2606.9,1.41308]
[1752003985824,1.99878062,2607.0,2606.9,0.76708]
[1752003986424,1.99878062,2607.0,2606.9,1.41308]
[1752003986625,1.99878062,2607.0,2606.9,0.76708]
[1752003986825,1.99878062,2607.0,2606.9,1.41308]
[1752003987222,1.99878062,2607.0,2606.9,0.76708]
[1752003987624,1.99878062,2607.0,2606.9,1.41308]
[1752003989022,1.31938062,2607.0,2606.9,0.76708]
[1752003989223,3.02138062,2607.0,2606.9,0.76708]
[1752003989624,3.02138062,2607.0,2606.9,1.41308]
[1752003989825,3.02138062,2607.0,2606.9,0.76708]
[1752003990128,3.02138062,2607.0,2606.9,1.41308]
[1752003990329,1.702,2607.0,2606.9,1.41308]
[1752003990725,0.6794,2607.0,2606.9,1.41308]
[1752003990930,5.54978062,2607.7,2606.9,7.66048062]
[1752003991127,0.76689,2607.6,2607.5,0.76688]
[1752003991326,1.44629,2607.6,2607.5,1.41288]
[1752003991526,0.6794,2607.6,2607.5,1.41288]
[1752003992425,0.6794,2607.6,2607.5,0.646]
[1752003992733,0.76692,2607.5,2607.4,0.76692]
[1752003993033,3.02138062,2607.5,2607.4,0.76692]
[1752003993428,3.78829062,2607.5,2607.4,0.76692]
[1752003993929,0.76698,2607.4,2607.3,0.76695]
[1752003994129,5.07126062,2607.4,2607.3,0.76695]
[1752003994730,4.30428062,2607.4,2607.3,0.76695]
[1752003995932,30.62428062,2607.4,2607.3,0.76695]
[1752003996225,29.34138062,2607.4,2607.3,0.76695]
[1752003997132,30.7803404,2607.4,2607.3,0.76695]
[1752003997536,31.5472804,2607.4,2607.3,0.76695]
[1752003997730,32.9318804,2607.4,2607.3,0.76695]
[1752003997931,31.5472804,2607.4,2607.3,0.76695]
[1752003998133,30.7803404,2607.4,2607.3,0.76695]
[1752003998333,31.5472804,2607.4,2607.3,0.76695]
[1752003998937,30.10832062,2607.4,2607.3,0.76695]
[1752003999334,29.34138062,2607.4,2607.3,0.76695]
[1752003999535,29.34138062,2607.4,2607.3,1.41295]
[1752003999730,3.02138062,2607.4,2607.3,0.76695]
[1752004000036,29.34038062,2607.4,2607.3,1.41295]
[1752004000236,30.78374443,2607.4,2607.3,1.41295]
[1752004000538,29.34038062,2607.4,2607.3,1.41295]
[1752004001037,30.10732062,2607.4,2607.3,1.41295]
[1752004001237,31.55058886,2607.4,2607.3,1.41295]
[1752004003340,30.78364886,2607.4,2607.3,1.41295]
[1752004003734,31.55058886,2607.4,2607.3,1.41295]
[1752004005243,31.55058886,2607.4,2607.3,0.76696]
[1752004005438,32.88408886,2607.4,2607.3,0.76696]
[1752004005636,32.88408886,2607.4,2607.2,0.6776]
[1752004005637,0.76696,2607.3,2607.2,0.76697]
[1752004005837,4.22312824,2607.3,2607.2,0.76697]
[1752004006141,5.24572824,2607.3,2607.2,0.76697]
[1752004007343,5.24572824,2607.3,2607.0,2.54694]
[1752004007344,0.76702,2607.1,2607.0,0.76701]
[1752004007544,0.76711,2606.8,2606.7,1.4551]
[1752004007844,30.10249062,2606.8,2606.7,1.4551]
[1752004008640,31.54726386,2606.8,2606.7,1.4551]
[1752004008841,29.75755386,2606.8,2606.7,2.1011]
[1752004009142,28.31278062,2606.8,2606.7,2.1011]
[1752004010344,29.07989062,2606.8,2606.7,2.1011]
[1752004010742,28.31278062,2606.8,2606.7,2.1011]
[1752004011246,29.07989062,2606.8,2606.7,2.1011]
[1752004012246,30.10249062,2606.8,2606.7,2.1011]
[1752004015450,30.02069062,2606.8,2606.7,1.4551]
[1752004015843,30.02069062,2606.8,2606.7,2.0866]
[1752004016044,30.02069062,2606.8,2606.7,1.4551]
[1752004016244,30.02069062,2606.8,2606.7,2.0866]
[1752004016746,30.02069062,2606.8,2606.7,0.688]
[1752004017050,0.76716,2606.7,2606.6,0.76714]
[1752004017249,2.38736,2606.7,2606.6,1.39864]
[1752004017450,0.6375,2606.7,2606.6,0.76714]
[1752004017651,0.6375,2606.7,2606.6,1.39864]
[1752004020551,2.08644062,2607.0,2606.7,0.76714]
[1752004020750,0.6375,2606.8,2606.7,0.76714]
[1752004020950,0.6375,2606.8,2606.7,1.39864]
[1752004021151,1.95688062,2606.8,2606.7,1.39864]
[1752004021852,2.72399062,2606.8,2606.7,1.39864]
[1752004022046,9.41858351,2606.8,2606.7,1.39864]
[1752004022253,6.21072248,2606.8,2606.7,1.39864]
[1752004024357,6.21072248,2606.8,2606.7,0.76714]
[1752004024358,7.19342248,2606.8,2606.7,0.76714]
[1752004025354,5.57322248,2606.8,2606.7,0.76714]
[1752004025553,7.19342248,2606.8,2606.7,0.76714]
[1752004027959,7.19325271,2606.8,2606.7,0.76714]
[1752004028153,6.42614271,2606.8,2606.7,0.76714]
[1752004028462,7.19325271,2606.8,2606.7,0.76714]
[1752004028759,6.42614271,2606.8,2606.7,0.76714]
[1752004029157,7.19325271,2606.8,2606.7,0.76714]
[1752004029460,6.42614271,2606.8,2606.7,0.76714]
[1752004029659,4.38514271,2606.8,2606.7,0.76714]
[1752004030760,4.38514271,2606.8,2606.7,1.39864]
[1752004031055,30.69414271,2606.8,2606.7,1.39864]
[1752004031762,2.08306209,2606.8,2606.7,1.39864]
[1752004031959,2.30208062,2607.0,2606.9,0.76708]
[1752004032160,30.69337278,2607.0,2606.9,1.39858]
[1752004032856,31.46042278,2607.0,2606.9,1.39858]
[1752004033157,30.69337278,2607.0,2606.9,1.39858]
[1752004033359,31.46042278,2607.0,2606.9,1.39858]
[1752004034256,30.69337278,2607.0,2606.9,1.39858]
[1752004035361,29.07317278,2607.0,2606.9,0.76708]
[1752004035561,30.69037278,2607.0,2606.9,1.39858]
[1752004036857,1.44579216,2607.0,2606.9,0.76708]
[1752004037059,2.16e-06,2607.0,2606.9,11.62106062]
[1752004037254,0.9827,2607.5,2607.4,0.76694]
[1752004037460,0.9827,2607.9,2607.8,0.76682]
[1752004037656,1.6202,2607.9,2607.8,0.76682]
[1752004037860,1.31938062,2608.2,2608.1,0.76673]
[1752004037861,27.62338062,2608.2,2608.1,0.76673]
[1752004038058,1.95688062,2608.2,2608.1,0.76673]
[1752004038259,0.6375,2608.2,2608.1,0.76673]
[1752004038959,30.4935,2608.3,2608.2,0.7667]
[1752004039365,31.131,2608.3,2608.2,0.7667]
[1752004040064,2.93958062,2608.3,2608.2,0.7667]
[1752004040360,1.31938062,2608.3,2608.2,0.7667]
[1752004040564,1.99258062,2608.3,2608.2,0.7667]
[1752004042165,0.6732,2608.3,2608.2,0.7667]
[1752004042366,2.30208062,2608.7,2608.4,1.91661]
[1752004042568,0.6732,2608.5,2608.4,0.76664]
[1752004042865,1.99258062,2608.5,2608.4,0.76664]
[1752004045262,0.6732,2608.5,2608.4,0.76664]
[1752004045566,2.95158062,2608.5,2608.4,0.76664]
[1752004045962,1.99258062,2608.5,2608.4,0.76664]
[1752004047564,2.95158062,2608.5,2608.4,0.76664]
[1752004048666,3.71819062,2608.5,2608.4,0.76664]
[1752004049472,2.95158062,2608.5,2608.4,0.76664]
[1752004053373,3.71819062,2608.5,2608.4,0.76664]
[1752004053574,2.95158062,2608.5,2608.4,0.76664]
[1752004053781,2.95158062,2608.5,2608.4,1.39554]
[1752004053969,0.6732,2608.5,2608.4,1.39554]
[1752004054376,0.6732,2608.5,2608.4,2.76814]
[1752004055370,27.04859,2608.6,2608.5,0.76661]
[1752004055771,28.68079,2608.6,2608.5,0.76661]
[1752004056573,0.6732,2608.6,2608.5,0.76661]
[1752004056778,1.43978,2608.6,2608.5,0.76661]
[1752004056971,0.6732,2608.6,2608.5,0.76661]
[1752004057168,1.43978,2608.6,2608.5,0.76661]
[1752004057371,0.6732,2608.6,2608.5,0.76661]
[1752004060078,2.39878,2608.6,2608.5,0.76661]
[1752004060279,1.6322,2608.6,2608.5,0.76661]
[1752004060477,2.39878,2608.6,2608.5,0.76661]
[1752004060677,1.6322,2608.6,2608.5,0.76661]
[1752004061379,2.39878,2608.6,2608.5,0.76661]
[1752004061878,1.6322,2608.6,2608.5,0.76661]
[1752004062180,2.39878,2608.6,2608.5,0.76661]
[1752004066285,3.83019066,2608.6,2608.5,0.76661]
[1752004066484,3.06361066,2608.6,2608.5,0.76661]
[1752004066883,1.6322,2608.6,2608.5,0.76661]
[1752004067082,3.06386768,2608.6,2608.5,0.76661]
[1752004068687,3.83044768,2608.6,2608.5,0.76661]
[1752004068893,3.06386768,2608.6,2608.5,0.76661]
[1752004069188,3.83044768,2608.6,2608.5,0.76661]
[1752004069378,3.06386768,2608.6,2608.5,0.76661]
[1752004072987,2.10486768,2608.6,2608.5,0.76661]
[1752004073190,2.10486768,2608.6,2608.5,2.03051]
[1752004073390,1.43166768,2608.6,2608.5,2.03051]
[1752004074382,1.43612569,2608.8,2608.7,0.76655]
[1752004074789,1.43612569,2608.8,2608.7,2.03045]
[1752004075588,2.06932569,2608.8,2608.7,2.03045]
[1752004076990,1.43612569,2608.8,2608.7,2.03045]
[1752004077494,2.06932569,2608.8,2608.7,2.03045]
[1752004079193,3.38870631,2608.8,2608.7,0.76655]
[1752004079392,4.37020631,2608.8,2608.7,0.76655]
[1752004085200,2.06932569,2608.8,2608.7,0.76655]
[1752004085398,1.43612569,2608.8,2608.7,0.76655]
[1752004085595,2.06932569,2608.8,2608.7,0.76655]
[1752004086197,2.06932569,2608.8,2608.7,2.13785]
[1752004088504,1.43612569,2608.8,2608.7,2.13785]
[1752004088899,0.9815,2609.2,2609.1,0.76644]
[1752004089099,3.04853488,2609.2,2609.1,0.76644]
[1752004089604,2.06703488,2609.2,2609.1,0.76644]
[1752004090803,1.43383488,2609.2,2609.1,0.76644]
[1752004091009,4.1893,2609.6,2609.5,0.76632]
[1752004091314,6.2556774,2609.6,2609.5,0.76632]
[1752004091504,2.0663774,2609.6,2609.5,0.76632]
[1752004091702,0.9815,2609.8,2609.5,0.76632]
[1752004091899,29.69693062,2610.1,2610.0,0.76617]
[1752004091900,0.9815,2610.1,2610.0,0.76617]
[1752004092108,2.41395815,2610.1,2610.0,0.76617]
[1752004092301,3.04715815,2610.1,2610.0,0.76617]
[1752004093004,2.06565815,2610.1,2610.0,0.76617]
[1752004093204,3.04715815,2610.1,2610.0,0.76617]
[1752004093612,2.06565815,2610.1,2610.0,0.76617]
[1752004094205,0.6332,2610.1,2610.0,0.76617]
[1752004094601,0.9815,2610.4,2609.9,0.6503]
[1752004094807,2.06313242,2610.3,2610.2,0.76611]
[1752004095006,0.6332,2610.3,2610.2,0.76611]
[1752004095312,0.76597,2610.7,2610.2,2.08549062]
[1752004095508,0.9815,2610.6,2610.4,3.2078]
[1752004095810,0.6332,2610.5,2610.4,3.97385]
[1752004096407,0.6332,2610.5,2610.4,4.65805]
[1752004100014,0.9815,2610.8,2610.7,0.76597]
[1752004100318,1.6147,2610.8,2610.7,0.76597]
[1752004100706,1.6147,2610.8,2610.7,3.97377]
[1752004102212,0.6332,2610.8,2610.7,3.97377]
[1752004102714,1.6252,2610.8,2610.7,3.97377]
[1752004105513,3.40058062,2611.0,2610.9,0.76591]
[1752004105914,4.03388062,2611.0,2610.9,0.76591]
[1752004106114,5.02588062,2611.0,2610.9,0.76591]
[1752004110120,0.76596,2610.8,2610.7,0.76593]
[1752004110319,3.71064062,2610.8,2610.7,0.76593]
[1752004110721,4.99904062,2610.8,2610.7,0.76593]
[1752004113324,4.23308062,2610.8,2610.7,0.76593]
[1752004113524,4.23308062,2610.8,2610.7,3.97373]
[1752004114130,4.99902062,2610.8,2610.7,3.97373]
[1752004114332,4.99902062,2610.8,2610.7,0.76593]
[1752004115224,4.23308062,2610.8,2610.7,0.76593]
[1752004115730,4.99902062,2610.8,2610.7,0.76593]
[1752004116729,4.99902062,2610.8,2610.7,0.76597]
[1752004118930,6.42292276,2610.8,2610.7,0.76597]
[1752004119130,5.65698276,2610.8,2610.7,0.76597]
[1752004119330,6.42292276,2610.8,2610.7,0.76597]
[1752004119931,5.65698276,2610.8,2610.7,0.76597]
[1752004120232,0.6333,2610.8,2610.7,3.97377]
[1752004120534,2.06004494,2610.8,2610.7,3.97377]
[1752004122832,1.42674494,2610.8,2610.7,3.97377]
[1752004123027,1.42889747,2610.9,2610.7,3.2078]
[1752004123331,5.51918062,2611.2,2611.1,0.76585]
[1752004123531,6.9490222,2611.2,2611.1,0.76585]
[1752004123730,0.76586,2611.1,2611.0,0.76586]
[1752004123930,4.8500822,2611.1,2611.0,0.76586]
[1752004124133,5.5262822,2611.1,2611.0,0.76586]
[1752004124435,8.15985773,2611.1,2611.0,0.76586]
[1752004125728,9.78515773,2611.1,2611.0,0.76586]
[1752004127137,6.3857222,2611.1,2611.0,0.76586]
[1752004128538,4.7604222,2611.1,2611.0,0.76586]
[1752004128741,6.3857222,2611.1,2611.0,0.76586]
[1752004132536,4.3745222,2611.1,2611.0,0.76586]
[1752004135539,4.4248222,2611.1,2611.0,0.76586]
[1752004137237,3.10544158,2611.1,2611.0,0.76586]
[1752004137439,4.4248222,2611.1,2611.0,0.76586]
[1752004138644,3.10544158,2611.1,2611.0,0.76586]
[1752004138944,2.09884158,2611.1,2611.0,0.76586]
[1752004139738,3.10544158,2611.1,2611.0,0.76586]
[1752004140343,1.42984158,2611.1,2611.0,0.76586]
[1752004140541,2.09884158,2611.1,2611.0,0.76586]
[1752004141650,1.42984158,2611.1,2611.0,3.97366]
[1752004141851,1.0066,2611.3,2611.0,5.12246]
[1752004142051,1.43038745,2611.2,2611.1,0.76585]
[1752004142351,2.09938745,2611.2,2611.1,0.76585]
[1752004144050,5.19119807,2611.2,2611.1,0.76585]
[1752004144245,6.33206807,2611.2,2611.1,0.76585]
[1752004145451,4.65646807,2611.2,2611.1,0.76585]
[1752004145749,6.33206807,2611.2,2611.1,0.76585]
[1752004145949,7.09788807,2611.2,2611.1,0.76585]
[1752004146150,6.33206807,2611.2,2611.1,0.76585]
[1752004146352,4.42536807,2611.2,2611.1,0.76585]
[1752004146954,2.09938745,2611.2,2611.1,0.76585]
[1752004148253,3.10598745,2611.2,2611.1,0.76585]
[1752004148649,1.43038745,2611.2,2611.1,0.76585]
[1752004148850,1.43038745,2611.2,2611.1,2.08523062]
[1752004149048,1.43038745,2611.2,2611.1,3.38133062]
[1752004149249,1.43038745,2611.2,2611.1,2.06195]
[1752004149847,0.58515745,2611.2,2611.1,3.38133062]
[1752004150051,1.0066,2611.7,2611.6,0.7657]
[1752004150252,0.669,2611.7,2611.6,0.7657]
[1752004150956,1.6756,2611.7,2611.6,0.7657]
[1752004151354,0.669,2611.7,2611.6,2.08508062]
[1752004151659,1.0066,2611.9,2611.8,0.76564]
[1752004152051,1.6756,2611.9,2611.8,0.76564]
[1752004153056,6.55368062,2612.1,2612.0,0.76558]
[1752004153057,3.2078,2612.1,2612.0,0.76558]
[1752004153359,1.6756,2612.1,2612.0,0.76558]
[1752004153754,3.2078,2612.4,2612.1,1.9139]
[1752004153956,1.6756,2612.3,2612.2,0.76553]
[1752004154259,2.99498062,2612.3,2612.2,0.76553]
[1752004154655,3.76048062,2612.3,2612.2,0.76553]
[1752004154953,1.6756,2612.3,2612.2,0.76553]
[1752004155464,4.52718062,2612.4,2612.3,0.7655]
[1752004155663,5.19618062,2612.4,2612.3,0.7655]
[1752004156161,6.20278062,2612.4,2612.3,0.7655]
[1752004157961,4.8834,2612.4,2612.3,0.7655]
[1752004158356,1.6756,2612.4,2612.3,0.7655]
[1752004159256,0.669,2612.4,2612.3,0.7655]
[1752004160258,5.95546062,2612.7,2612.3,0.7655]
[1752004160259,3.2078,2612.7,2612.6,0.76541]
[1752004160454,4.5473,2612.7,2612.6,0.76541]
[1752004160658,5.849,2612.7,2612.6,0.76541]
[1752004160861,6.8556,2612.7,2612.6,0.76541]
[1752004161156,1.6623,2612.7,2612.6,0.76541]
[1752004163267,2.98168062,2612.7,2612.6,0.76541]
[1752004164769,1.6623,2612.7,2612.6,0.76541]
[1752004165666,1.31938062,2612.8,2612.7,0.76538]
[1752004165963,0.6557,2612.8,2612.7,0.76538]
[1752004166169,1.6613,2612.8,2612.7,0.76538]
[1752004166363,2.42665,2612.8,2612.7,0.76538]
[1752004166764,3.79755,2612.8,2612.7,0.76538]
[1752004167661,3.0322,2612.8,2612.7,0.76538]
[1752004167862,5.11693062,2612.8,2612.7,0.76538]
[1752004168367,2.98068062,2612.8,2612.7,0.76538]
[1752004168562,3.74603062,2612.8,2612.7,0.76538]
[1752004168775,2.98068062,2612.8,2612.7,0.76538]
[1752004169371,4.39211447,2612.8,2612.7,0.76538]
[1752004169870,3.07273385,2612.8,2612.7,0.76538]
[1752004170468,1.6613,2612.8,2612.7,0.76538]
[1752004170660,0.6557,2612.8,2612.7,0.76538]
[1752004170866,1.96008062,2613.2,2613.1,0.76526]
[1752004171062,1.41160114,2613.2,2613.1,5.29244062]
[1752004171371,7.37224553,2614.0,2613.8,0.76505]
[1752004171569,4.11353318,2613.9,2613.8,0.76505]
[1752004171772,4.76923318,2613.9,2613.8,0.76505]
[1752004172268,0.76508,2613.8,2613.7,0.76507]
[1752004172469,0.76508,2613.8,2613.6,0.76509]
[1752004172470,0.7651,2613.7,2613.6,0.76509]
[1752004172969,2.1478,2613.7,2613.6,0.76509]
[1752004173171,1.3827,2613.7,2613.6,0.76509]
[1752004174071,2.14779,2613.7,2613.6,0.76509]
[1752004174568,1.3827,2613.7,2613.6,0.76509]
[1752004174774,3.044,2613.7,2613.6,0.76509]
[1752004174973,3.80909,2613.7,2613.6,0.76509]
[1752004176679,3.80909,2613.7,2613.3,2.55119]
[1752004176680,0.76513,2613.6,2613.3,0.6382]
[1752004176878,1.97508062,2613.4,2613.3,1.4034]
[1752004177177,2.98068062,2613.4,2613.3,1.4034]
[1752004177778,0.76523,2613.3,2613.2,0.76521]
[1752004177972,4.35373,2613.3,2613.2,0.76521]
[1752004178174,0.76531,2613.0,2612.9,0.76528]
[1752004178373,3.74599062,2613.0,2612.9,0.76528]
[1752004178779,0.76537,2612.8,2612.7,0.76535]
[1752004178978,3.74605062,2612.8,2612.7,0.76535]
[1752004179178,2.98068062,2612.8,2612.7,0.76535]
[1752004179379,3.74603062,2612.8,2612.7,0.76535]
[1752004179578,3.74603062,2612.8,2612.6,3.2078]
[1752004179579,0.76538,2612.7,2612.6,3.97319]
[1752004179781,3.80358,2612.7,2612.6,3.97319]
[1752004180382,3.0382,2612.7,2612.2,3.2078]
[1752004180679,3.0382,2612.7,2612.2,4.60173]
[1752004180680,1.31938062,2612.3,2612.2,4.60173]
[1752004180882,1.97508062,2612.3,2612.2,4.60173]
[1752004181082,2.98068062,2612.3,2612.2,4.60173]
[1752004182187,2.98068062,2612.3,2612.2,1.39393]
[1752004184478,3.74618062,2612.3,2612.2,0.76553]
[1752004184784,4.30008062,2612.3,2611.8,0.6733]
[1752004184980,2.39865,2612.2,2612.1,0.76555]
[1752004185181,0.76561,2612.0,2611.9,0.76558]
[1752004185380,0.76561,2611.9,2611.8,0.76562]
[1752004185581,2.42691,2611.9,2611.8,0.76562]
[1752004186081,3.67691,2611.9,2611.8,0.76562]
[1752004187180,3.67691,2611.9,2611.7,0.76565]
[1752004187181,0.76567,2611.8,2611.7,0.76565]
[1752004187485,3.09065062,2611.8,2611.7,0.76565]
[1752004187685,3.74635062,2611.8,2611.7,0.76565]
[1752004188486,2.98068062,2611.8,2611.7,0.76565]
[1752004189586,3.74632062,2611.8,2611.7,0.76565]
[1752004190486,2.98068062,2611.8,2611.7,0.76565]
[1752004192587,3.74632062,2611.8,2611.7,0.76565]
[1752004192886,5.05362062,2611.8,2611.7,0.76565]
[1752004193086,4.28798062,2611.8,2611.7,0.76565]
[1752004193590,2.98068062,2611.8,2611.7,0.76565]
[1752004194088,5.09242062,2611.8,2611.7,0.76565]
[1752004194290,4.32678062,2611.8,2611.7,0.76565]
[1752004194587,5.09242062,2611.8,2611.7,0.76565]
[1752004194888,0.76567,2611.7,2611.6,0.76567]
[1752004195082,2.40767,2611.7,2611.6,0.76567]
[1752004195283,3.75377,2611.7,2611.6,0.76567]
[1752004195588,0.76577,2611.5,2611.4,0.76571]
[1752004195782,2.96138062,2611.5,2611.4,0.76571]
[1752004195982,0.76579,2611.4,2611.3,0.76576]
[1752004196183,3.65868062,2611.4,2611.3,0.76576]
[1752004196384,4.30748062,2611.4,2611.3,0.76576]
[1752004197191,2.96138062,2611.4,2611.3,0.76576]
[1752004197791,3.72714062,2611.4,2611.3,0.76576]
[1752004197992,2.96138062,2611.4,2611.3,0.76576]
[1752004199392,3.72714062,2611.4,2611.3,0.76576]
[1752004199892,2.96138062,2611.4,2611.3,0.76576]
[1752004200283,0.9932,2612.2,2611.6,1.9142]
[1752004200587,1.642,2612.2,2612.1,0.76556]
[1752004201492,1.642,2612.2,2611.7,3.9007]
[1752004201493,0.76558,2612.1,2611.7,3.9007]
[1752004201688,1.31938062,2611.8,2611.7,4.66637]
[1752004201887,2.08497062,2612.0,2611.7,3.9007]
[1752004202088,2.08497062,2612.0,2611.9,0.76561]
[1752004202383,2.08496062,2612.0,2611.9,0.76561]
[1752004202685,2.08496062,2612.0,2611.7,0.6929]
[1752004202885,1.31938062,2611.8,2611.2,3.2078]
[1752004203090,1.31938062,2611.6,2611.3,3.2078]
[1752004203285,2.12012,2611.9,2611.6,1.91426]
[1752004203492,0.7656,2612.0,2611.9,0.76558]
[1752004203687,1.642,2612.2,2612.1,0.76556]
[1752004204094,1.642,2612.2,2612.0,0.76556]
[1752004204392,1.31938062,2612.1,2612.0,0.76556]
[1752004204594,2.08494062,2612.1,2612.0,0.76556]
[1752004205187,1.642,2612.2,2612.1,0.76556]
[1752004205584,4.201,2612.4,2612.3,0.7655]
[1752004205790,3.05753838,2612.4,2612.3,0.7655]
[1752004206698,3.82300838,2612.4,2612.3,0.7655]
[1752004207091,0.7655,2612.3,2612.2,0.76553]
[1752004207393,6.401649,2612.3,2612.2,0.76553]
[1752004208388,0.76555,2612.2,2612.1,0.76553]
[1752004208589,3.82308838,2612.2,2612.1,0.76553]
[1752004208790,3.82308838,2612.2,2611.6,3.2078]
[1752004208791,8.05753838,2612.2,2611.6,3.2078]
[1752004208993,1.31938062,2611.7,2611.6,3.9735]